[Event "Late-Titled-Tuesday-Blitz-March-19-2024"]
[Site "Chess.com"]
[Date "2024.03.19"]
[Round "5"]
[White "CarlosjPineror"]
[Black "Schattman"]
[Result "1-0"]
[WhiteElo "2678"]
[BlackElo "2506"]
[TimeControl "180+1"]
[EndTime "14:54:46 PDT"]
[Termination "CarlosjPineror won on time"]

1. e4 {[%clk 0:03:00.9]} 1... c6 {[%clk 0:02:55]} 2. d4 {[%clk 0:03:00]} 2... d5
{[%clk 0:02:55.5]} 3. e5 {[%clk 0:02:57.4]} 3... Bf5 {[%clk 0:02:54.7]} 4. h4
{[%clk 0:02:57.8]} 4... h5 {[%clk 0:02:54.2]} 5. Ne2 {[%clk 0:02:57.3]} 5... e6
{[%clk 0:02:52.4]} 6. Ng3 {[%clk 0:02:54.3]} 6... Bg6 {[%clk 0:02:52.4]} 7. Bd3
{[%clk 0:02:54.2]} 7... Bxd3 {[%clk 0:02:50.4]} 8. Qxd3 {[%clk 0:02:55.1]} 8...
Be7 {[%clk 0:02:46.1]} 9. Qf3 {[%clk 0:02:49.7]} 9... g6 {[%clk 0:02:37.6]} 10.
Qf4 {[%clk 0:02:45.1]} 10... Nh6 {[%clk 0:02:25]} 11. Nc3 {[%clk 0:02:39.1]}
11... a6 {[%clk 0:02:23.9]} 12. Bd2 {[%clk 0:02:37.7]} 12... c5 {[%clk
0:02:23.4]} 13. Nce2 {[%clk 0:02:34]} 13... cxd4 {[%clk 0:02:08.5]} 14. Nxd4
{[%clk 0:02:32.9]} 14... Nc6 {[%clk 0:02:08.9]} 15. c3 {[%clk 0:02:32.3]} 15...
Nxd4 {[%clk 0:01:55.5]} 16. cxd4 {[%clk 0:02:33.2]} 16... Rc8 {[%clk 0:01:51.9]}
17. a3 {[%clk 0:02:31.5]} 17... Qb6 {[%clk 0:01:40.2]} 18. Bc3 {[%clk
0:02:28.1]} 18... Qb5 {[%clk 0:01:33.9]} 19. f3 {[%clk 0:02:25]} 19... Nf5
{[%clk 0:01:29]} 20. Nxf5 {[%clk 0:02:24.3]} 20... gxf5 {[%clk 0:01:29.9]} 21.
Kf2 {[%clk 0:02:19.9]} 21... Kd7 {[%clk 0:01:26]} 22. a4 {[%clk 0:02:15.3]}
22... Qb3 {[%clk 0:01:22.4]} 23. Rhc1 {[%clk 0:02:15.9]} 23... Rc4 {[%clk
0:01:17.3]} 24. a5 {[%clk 0:02:13]} 24... Rhc8 {[%clk 0:01:14.6]} 25. Kg1 {[%clk
0:02:07.3]} 25... Ra4 {[%clk 0:00:59.1]} 26. Rxa4 {[%clk 0:01:47.7]} 26... Qxa4
{[%clk 0:01:00]} 27. Qh6 {[%clk 0:01:48.2]} 27... Bxh4 {[%clk 0:00:46.8]} 28.
Qxh5 {[%clk 0:01:45.1]} 28... Be7 {[%clk 0:00:46.4]} 29. Qxf7 {[%clk 0:01:45.7]}
29... Rf8 {[%clk 0:00:44.1]} 30. Qg7 {[%clk 0:01:42.8]} 30... Rc8 {[%clk
0:00:39.9]} 31. Kf2 {[%clk 0:01:21.5]} 31... Qb5 {[%clk 0:00:38]} 32. Rh1 {[%clk
0:01:18.5]} 32... Qd3 {[%clk 0:00:26.7]} 33. Rh7 {[%clk 0:01:16.8]} 33... Qc2+
{[%clk 0:00:20.7]} 34. Kg3 {[%clk 0:01:15.8]} 34... f4+ {[%clk 0:00:21.1]} 35.
Kh2 {[%clk 0:01:13.5]} 35... Re8 {[%clk 0:00:21]} 36. Bb4 {[%clk 0:01:13.2]}
36... Qf2 {[%clk 0:00:10.5]} 37. Bxe7 {[%clk 0:01:05.8]} 37... Qg3+ {[%clk
0:00:09.6]} 38. Qxg3 {[%clk 0:01:05.5]} 38... fxg3+ {[%clk 0:00:10.5]} 39. Kxg3
{[%clk 0:01:06.4]} 39... Rxe7 {[%clk 0:00:11.4]} 40. Rxe7+ {[%clk 0:01:06.8]}
40... Kxe7 {[%clk 0:00:12.3]} 41. Kg4 {[%clk 0:01:07.5]} 41... Kf7 {[%clk
0:00:12.4]} 42. Kg5 {[%clk 0:01:08.2]} 42... Kg7 {[%clk 0:00:13]} 43. f4 {[%clk
0:01:08.8]} 43... Kf7 {[%clk 0:00:13.5]} 44. g4 {[%clk 0:01:09.4]} 44... Kg7
{[%clk 0:00:13.9]} 45. f5 {[%clk 0:01:10]} 45... Kf7 {[%clk 0:00:14.8]} 46.
fxe6+ {[%clk 0:01:09.1]} 46... Kxe6 {[%clk 0:00:13.3]} 47. Kh6 {[%clk
0:01:09.7]} 47... b5 {[%clk 0:00:13.9]} 48. b4 {[%clk 0:01:08.9]} 1-0

[Event "Late-Titled-Tuesday-Blitz-March-19-2024"]
[Site "Chess.com"]
[Date "2024.03.19"]
[Round "5"]
[White "Jahonas"]
[Black "Payyappat"]
[Result "1-0"]
[WhiteElo "2362"]
[BlackElo "2510"]
[TimeControl "180+1"]
[EndTime "14:54:49 PDT"]
[Termination "Jahonas won by resignation"]

1. e4 {[%clk 0:03:00.9]} 1... c6 {[%clk 0:02:58.3]} 2. Nf3 {[%clk 0:03:00.3]}
2... d5 {[%clk 0:02:59.2]} 3. Nc3 {[%clk 0:03:00.1]} 3... dxe4 {[%clk
0:02:59.2]} 4. Nxe4 {[%clk 0:03:00]} 4... Nf6 {[%clk 0:03:00.1]} 5. Ng3 {[%clk
0:02:59.5]} 5... g6 {[%clk 0:02:59.6]} 6. c3 {[%clk 0:02:59.1]} 6... Bg7 {[%clk
0:03:00.1]} 7. d4 {[%clk 0:02:59.5]} 7... O-O {[%clk 0:03:00.7]} 8. Be2 {[%clk
0:02:59.9]} 8... Bg4 {[%clk 0:02:59.9]} 9. O-O {[%clk 0:02:59.9]} 9... Nbd7
{[%clk 0:02:59.5]} 10. h3 {[%clk 0:02:59.9]} 10... Bxf3 {[%clk 0:02:58.9]} 11.
Bxf3 {[%clk 0:03:00.3]} 11... Re8 {[%clk 0:02:59.3]} 12. Qb3 {[%clk 0:02:56.9]}
12... Qc7 {[%clk 0:02:58.5]} 13. Be3 {[%clk 0:02:49.3]} 13... e5 {[%clk
0:02:57]} 14. Rfd1 {[%clk 0:02:41.6]} 14... e4 {[%clk 0:02:54.3]} 15. Be2 {[%clk
0:02:41.6]} 15... Nd5 {[%clk 0:02:52.3]} 16. c4 {[%clk 0:02:37.8]} 16... Nxe3
{[%clk 0:02:51.1]} 17. Qxe3 {[%clk 0:02:36.5]} 17... f5 {[%clk 0:02:51.3]} 18.
Qb3 {[%clk 0:02:30.9]} 18... f4 {[%clk 0:02:48.2]} 19. Nf1 {[%clk 0:02:29.2]}
19... Kh8 {[%clk 0:02:43.7]} 20. Nh2 {[%clk 0:02:15]} 20... Rf8 {[%clk
0:02:38.7]} 21. Bg4 {[%clk 0:02:00.8]} 21... Nf6 {[%clk 0:02:35.4]} 22. d5
{[%clk 0:02:00.4]} 22... Nxg4 {[%clk 0:02:29.8]} 23. Nxg4 {[%clk 0:01:59.5]}
23... h5 {[%clk 0:02:25.2]} 24. Nh2 {[%clk 0:01:57]} 24... c5 {[%clk 0:02:15]}
25. d6 {[%clk 0:01:54.8]} 25... Qd7 {[%clk 0:02:14.2]} 26. Rd5 {[%clk
0:01:54.1]} 26... f3 {[%clk 0:02:09.5]} 27. Re1 {[%clk 0:01:33.6]} 27... Rae8
{[%clk 0:02:05.1]} 28. Qe3 {[%clk 0:01:29.2]} 28... b6 {[%clk 0:02:01.3]} 29. g4
{[%clk 0:01:26.6]} 29... hxg4 {[%clk 0:01:54.5]} 30. Nxg4 {[%clk 0:01:25.7]}
30... Rf5 {[%clk 0:01:52.3]} 31. Red1 {[%clk 0:01:05.5]} 31... Rh5 {[%clk
0:01:16.2]} 32. Rg5 {[%clk 0:00:27.3]} 32... Rxh3 {[%clk 0:01:06]} 33. Rxg6
{[%clk 0:00:25.9]} 33... Re6 {[%clk 0:00:54.5]} 34. Qg5 {[%clk 0:00:25.4]} 34...
Rxg6 {[%clk 0:00:41.2]} 35. Qxg6 {[%clk 0:00:25.6]} 35... Rh4 {[%clk 0:00:40.3]}
36. Nf6 {[%clk 0:00:20.1]} 36... Rh6 {[%clk 0:00:24.4]} 37. Qxh6+ {[%clk
0:00:18.3]} 1-0

[Event "Late-Titled-Tuesday-Blitz-March-19-2024"]
[Site "Chess.com"]
[Date "2024.03.19"]
[Round "5"]
[White "ChempionBg"]
[Black "GiorgianBarbosa"]
[Result "1-0"]
[WhiteElo "2349"]
[BlackElo "2517"]
[TimeControl "180+1"]
[EndTime "14:54:50 PDT"]
[Termination "ChempionBg won by resignation"]

1. d4 {[%clk 0:02:58.6]} 1... Nf6 {[%clk 0:02:59.9]} 2. c4 {[%clk 0:02:58.6]}
2... g6 {[%clk 0:03:00.8]} 3. g3 {[%clk 0:02:57.2]} 3... Bg7 {[%clk 0:03:01.7]}
4. Bg2 {[%clk 0:02:57.6]} 4... O-O {[%clk 0:03:02.6]} 5. Nf3 {[%clk 0:02:57]}
5... c5 {[%clk 0:03:03.5]} 6. d5 {[%clk 0:02:54.8]} 6... e6 {[%clk 0:03:03.8]}
7. O-O {[%clk 0:02:54.2]} 7... exd5 {[%clk 0:03:04.7]} 8. cxd5 {[%clk
0:02:54.3]} 8... d6 {[%clk 0:03:05.6]} 9. Nc3 {[%clk 0:02:54.1]} 9... Re8 {[%clk
0:03:05.9]} 10. Nd2 {[%clk 0:02:51.3]} 10... a6 {[%clk 0:03:04]} 11. a4 {[%clk
0:02:51.1]} 11... Nbd7 {[%clk 0:02:59.7]} 12. Nc4 {[%clk 0:02:47.7]} 12... Ne5
{[%clk 0:02:58.9]} 13. Na3 {[%clk 0:02:41.7]} 13... Rb8 {[%clk 0:02:51.2]} 14.
h3 {[%clk 0:02:41.1]} 14... b6 {[%clk 0:02:18.6]} 15. f4 {[%clk 0:02:30.3]}
15... Ned7 {[%clk 0:02:17.8]} 16. e4 {[%clk 0:02:30.4]} 16... Qc7 {[%clk
0:02:17]} 17. Re1 {[%clk 0:02:28.8]} 17... c4 {[%clk 0:02:16.4]} 18. Qe2 {[%clk
0:02:22.8]} 18... b5 {[%clk 0:02:13.2]} 19. axb5 {[%clk 0:02:02.3]} 19... axb5
{[%clk 0:02:14.1]} 20. Be3 {[%clk 0:01:58.7]} 20... b4 {[%clk 0:02:12.9]} 21.
Nab5 {[%clk 0:01:28.1]} 21... Qd8 {[%clk 0:02:11.6]} 22. Nxd6 {[%clk 0:01:28.1]}
22... bxc3 {[%clk 0:02:12]} 23. Nxe8 {[%clk 0:01:27.5]} 23... Qxe8 {[%clk
0:02:05.1]} 24. bxc3 {[%clk 0:01:16.3]} 24... Nxe4 {[%clk 0:02:03.9]} 25. Ba7
{[%clk 0:01:03.1]} 25... f5 {[%clk 0:01:31.8]} 26. Bxb8 {[%clk 0:00:59]} 26...
Nxb8 {[%clk 0:01:32.7]} 27. Bxe4 {[%clk 0:00:56.2]} 27... fxe4 {[%clk
0:01:33.6]} 28. Qxe4 {[%clk 0:00:56]} 28... Qf8 {[%clk 0:01:29.1]} 29. Ra8
{[%clk 0:00:52.2]} 29... Nd7 {[%clk 0:00:56.1]} 30. Qe8 {[%clk 0:00:22.8]} 30...
Bb7 {[%clk 0:00:39.7]} 31. Qe6+ {[%clk 0:00:22.3]} 31... Kh8 {[%clk 0:00:26.6]}
32. Rxf8+ {[%clk 0:00:22.2]} 32... Nxf8 {[%clk 0:00:27.5]} 33. Qf7 {[%clk
0:00:20.9]} 33... Bc8 {[%clk 0:00:22.5]} 34. Re8 {[%clk 0:00:20]} 1-0

[Event "Late-Titled-Tuesday-Blitz-March-19-2024"]
[Site "Chess.com"]
[Date "2024.03.19"]
[Round "5"]
[White "Bastiandash"]
[Black "1g60-1"]
[Result "1-0"]
[WhiteElo "2606"]
[BlackElo "2381"]
[TimeControl "180+1"]
[EndTime "14:54:51 PDT"]
[Termination "Bastiandash won by resignation"]

1. e4 {[%clk 0:03:00.9]} 1... e6 {[%clk 0:02:59.6]} 2. d4 {[%clk 0:02:57.2]}
2... d5 {[%clk 0:02:59.5]} 3. Nc3 {[%clk 0:02:58.1]} 3... Bb4 {[%clk 0:02:59.1]}
4. Ne2 {[%clk 0:02:57.1]} 4... dxe4 {[%clk 0:02:55.5]} 5. a3 {[%clk 0:02:57]}
5... Bxc3+ {[%clk 0:02:53.2]} 6. Nxc3 {[%clk 0:02:57.9]} 6... f5 {[%clk
0:02:52.9]} 7. Bc4 {[%clk 0:02:55.9]} 7... Nf6 {[%clk 0:02:52.1]} 8. Be3 {[%clk
0:02:56.1]} 8... O-O {[%clk 0:02:51.9]} 9. f3 {[%clk 0:02:55.6]} 9... Nd5 {[%clk
0:02:50.1]} 10. Qd2 {[%clk 0:02:41.3]} 10... f4 {[%clk 0:02:33.6]} 11. Bg1
{[%clk 0:02:33.4]} 11... e3 {[%clk 0:02:32]} 12. Qe2 {[%clk 0:02:31.7]} 12...
Nxc3 {[%clk 0:02:07.8]} 13. bxc3 {[%clk 0:02:32.6]} 13... Qh4+ {[%clk
0:01:53.1]} 14. g3 {[%clk 0:02:04.8]} 14... fxg3 {[%clk 0:01:51.3]} 15. O-O-O
{[%clk 0:02:05.7]} 15... Qe7 {[%clk 0:01:23.6]} 16. hxg3 {[%clk 0:01:46.5]}
16... Rf5 {[%clk 0:01:23]} 17. Bxe3 {[%clk 0:01:41.6]} 17... Qxa3+ {[%clk
0:01:20.6]} 18. Kd2 {[%clk 0:01:42]} 18... Qf8 {[%clk 0:01:02.9]} 19. Bd3 {[%clk
0:01:30.5]} 19... Nc6 {[%clk 0:00:56.9]} 20. g4 {[%clk 0:01:28.1]} 20... Rf6
{[%clk 0:00:54.3]} 21. Bxh7+ {[%clk 0:01:18.3]} 21... Kf7 {[%clk 0:00:54.2]} 22.
Be4 {[%clk 0:00:57.8]} 22... Bd7 {[%clk 0:00:47.6]} 23. g5 {[%clk 0:00:46.4]}
23... Rf5 {[%clk 0:00:47.8]} 24. Bxf5 {[%clk 0:00:40.9]} 24... exf5 {[%clk
0:00:48.7]} 25. Qh2 {[%clk 0:00:33.6]} 25... Na5 {[%clk 0:00:35.6]} 26. g6+
{[%clk 0:00:29.8]} 26... Kxg6 {[%clk 0:00:29.7]} 27. Qh5+ {[%clk 0:00:29]} 27...
Kf6 {[%clk 0:00:28.4]} 28. Bg5+ {[%clk 0:00:29.9]} 28... Ke6 {[%clk 0:00:26]}
29. Rhe1+ {[%clk 0:00:27.4]} 29... Kd6 {[%clk 0:00:23.8]} 30. Qg6+ {[%clk
0:00:21.2]} 30... Kd5 {[%clk 0:00:20]} 31. Re5+ {[%clk 0:00:21.7]} 31... Kc4
{[%clk 0:00:20.3]} 32. Rc5+ {[%clk 0:00:20.2]} 32... Qxc5 {[%clk 0:00:18.4]} 33.
dxc5 {[%clk 0:00:21.1]} 33... Bc6 {[%clk 0:00:17.6]} 34. Qxf5 {[%clk 0:00:18.9]}
34... Rd8+ {[%clk 0:00:16.7]} 35. Kc1 {[%clk 0:00:19.5]} 35... Rxd1+ {[%clk
0:00:14.4]} 36. Kxd1 {[%clk 0:00:20.4]} 1-0

[Event "Late-Titled-Tuesday-Blitz-March-19-2024"]
[Site "Chess.com"]
[Date "2024.03.19"]
[Round "5"]
[White "ATM622"]
[Black "AsterPhoenix"]
[Result "0-1"]
[WhiteElo "2501"]
[BlackElo "2649"]
[TimeControl "180+1"]
[EndTime "14:54:56 PDT"]
[Termination "AsterPhoenix won by resignation"]

1. d4 {[%clk 0:03:00.9]} 1... Nf6 {[%clk 0:02:58.3]} 2. c4 {[%clk 0:03:01.2]}
2... c5 {[%clk 0:02:55.1]} 3. d5 {[%clk 0:02:59.4]} 3... b5 {[%clk 0:02:52.4]}
4. cxb5 {[%clk 0:02:59]} 4... a6 {[%clk 0:02:52.5]} 5. e3 {[%clk 0:02:57.5]}
5... e6 {[%clk 0:02:35.5]} 6. Nc3 {[%clk 0:02:47.8]} 6... Bb7 {[%clk 0:02:33.1]}
7. dxe6 {[%clk 0:02:42.5]} 7... fxe6 {[%clk 0:02:31.8]} 8. Nf3 {[%clk
0:02:36.4]} 8... Be7 {[%clk 0:02:27.9]} 9. Be2 {[%clk 0:02:29.9]} 9... O-O
{[%clk 0:02:27.3]} 10. O-O {[%clk 0:02:25.9]} 10... d5 {[%clk 0:02:27.1]} 11. b3
{[%clk 0:02:11.4]} 11... axb5 {[%clk 0:02:21]} 12. Bxb5 {[%clk 0:02:07.5]} 12...
Nbd7 {[%clk 0:02:17.4]} 13. Ng5 {[%clk 0:02:05]} 13... Qb6 {[%clk 0:02:15.6]}
14. Bxd7 {[%clk 0:01:54.5]} 14... Nxd7 {[%clk 0:02:14.9]} 15. Nf3 {[%clk
0:01:45.5]} 15... d4 {[%clk 0:02:04]} 16. exd4 {[%clk 0:01:29.7]} 16... Bxf3
{[%clk 0:02:00.8]} 17. gxf3 {[%clk 0:01:29.4]} 17... cxd4 {[%clk 0:01:59.2]} 18.
Ne4 {[%clk 0:01:26.3]} 18... Ne5 {[%clk 0:01:51.3]} 19. f4 {[%clk 0:01:17.7]}
19... Qc6 {[%clk 0:01:51.2]} 20. f3 {[%clk 0:01:12.1]} 20... Ng6 {[%clk
0:01:47.1]} 21. Qxd4 {[%clk 0:01:05.5]} 21... Rad8 {[%clk 0:01:41.1]} 22. Qc3
{[%clk 0:01:02.6]} 22... Qxc3 {[%clk 0:01:33.7]} 23. Nxc3 {[%clk 0:01:02.6]}
23... Bf6 {[%clk 0:01:33.9]} 24. Bb2 {[%clk 0:00:57.1]} 24... Rd2 {[%clk
0:01:34.2]} 25. Rab1 {[%clk 0:00:57.3]} 25... Rxb2 {[%clk 0:01:32.6]} 26. Rxb2
{[%clk 0:00:57.6]} 26... Bxc3 {[%clk 0:01:33.1]} 27. Rc2 {[%clk 0:00:55.2]}
27... Bd4+ {[%clk 0:01:33.5]} 28. Kh1 {[%clk 0:00:55.4]} 28... Nxf4 {[%clk
0:01:33.8]} 29. a4 {[%clk 0:00:48]} 29... Rb8 {[%clk 0:01:26.3]} 30. Rb1 {[%clk
0:00:46.2]} 30... Nd5 {[%clk 0:01:21.7]} 31. a5 {[%clk 0:00:35.6]} 31... Bc3
{[%clk 0:01:19.4]} 32. Ra2 {[%clk 0:00:30.4]} 32... Ra8 {[%clk 0:01:17.1]} 33.
b4 {[%clk 0:00:20.2]} 33... Bxb4 {[%clk 0:01:14.5]} 34. Ra4 {[%clk 0:00:05.3]}
34... Bf8 {[%clk 0:01:01.8]} 35. Rb3 {[%clk 0:00:04.1]} 35... Ra6 {[%clk
0:00:57.7]} 36. Kg2 {[%clk 0:00:02.1]} 36... Kf7 {[%clk 0:00:56.6]} 37. Kf2
{[%clk 0:00:01.9]} 37... Kf6 {[%clk 0:00:55.4]} 38. Ke2 {[%clk 0:00:01.4]} 38...
Rc6 {[%clk 0:00:51.1]} 39. Rb8 {[%clk 0:00:01.2]} 39... Nc3+ {[%clk 0:00:50.6]}
40. Kd3 {[%clk 0:00:01.6]} 40... Nxa4 {[%clk 0:00:51.2]} 41. Rxf8+ {[%clk
0:00:01.8]} 41... Ke7 {[%clk 0:00:50.3]} 42. Ra8 {[%clk 0:00:02.1]} 42... Ra6
{[%clk 0:00:47.9]} 43. Kc4 {[%clk 0:00:02.2]} 43... Rxa8 {[%clk 0:00:47.3]} 0-1

[Event "Late-Titled-Tuesday-Blitz-March-19-2024"]
[Site "Chess.com"]
[Date "2024.03.19"]
[Round "5"]
[White "DryCounty"]
[Black "Igrok3069"]
[Result "0-1"]
[WhiteElo "2654"]
[BlackElo "2862"]
[TimeControl "180+1"]
[EndTime "14:54:59 PDT"]
[Termination "Igrok3069 won on time"]

1. e4 {[%clk 0:03:00.9]} 1... e5 {[%clk 0:02:54.3]} 2. Nf3 {[%clk 0:03:00.1]}
2... Nc6 {[%clk 0:02:54.6]} 3. Bb5 {[%clk 0:02:57.1]} 3... a6 {[%clk 0:02:54.8]}
4. Ba4 {[%clk 0:02:57.2]} 4... Nge7 {[%clk 0:02:55.1]} 5. O-O {[%clk 0:02:56]}
5... Ng6 {[%clk 0:02:50.8]} 6. Nc3 {[%clk 0:02:53.4]} 6... Bc5 {[%clk
0:02:33.1]} 7. d3 {[%clk 0:02:49.1]} 7... O-O {[%clk 0:02:32.3]} 8. Bg5 {[%clk
0:02:44.7]} 8... Be7 {[%clk 0:02:28.5]} 9. Be3 {[%clk 0:02:30.6]} 9... d6 {[%clk
0:02:24.4]} 10. h3 {[%clk 0:02:22.9]} 10... b5 {[%clk 0:02:21.7]} 11. Bb3 {[%clk
0:02:22.4]} 11... Na5 {[%clk 0:02:22.4]} 12. d4 {[%clk 0:02:02.1]} 12... exd4
{[%clk 0:02:11.7]} 13. Bxd4 {[%clk 0:01:21.7]} 13... c5 {[%clk 0:02:05]} 14. Bd5
{[%clk 0:01:21.6]} 14... cxd4 {[%clk 0:02:04.9]} 15. Bxa8 {[%clk 0:01:20.7]}
15... dxc3 {[%clk 0:02:04.8]} 16. b4 {[%clk 0:01:19.8]} 16... Nc4 {[%clk
0:01:54.4]} 17. a4 {[%clk 0:01:15.7]} 17... Nf4 {[%clk 0:01:22.8]} 18. axb5
{[%clk 0:01:08.9]} 18... axb5 {[%clk 0:01:22.3]} 19. Bd5 {[%clk 0:01:06]} 19...
Qc7 {[%clk 0:01:13.1]} 20. Re1 {[%clk 0:00:55.9]} 20... Bd7 {[%clk 0:01:07.5]}
21. Qd4 {[%clk 0:00:54.4]} 21... Bf6 {[%clk 0:00:41.4]} 22. Qa7 {[%clk
0:00:44.9]} 22... Qc8 {[%clk 0:00:38.9]} 23. Bxc4 {[%clk 0:00:39.7]} 23... bxc4
{[%clk 0:00:37.5]} 24. Re3 {[%clk 0:00:20.2]} 24... h6 {[%clk 0:00:34.8]} 25.
Rd1 {[%clk 0:00:17.3]} 25... Qc6 {[%clk 0:00:31.8]} 26. Nd4 {[%clk 0:00:13.2]}
26... Qa4 {[%clk 0:00:25.8]} 27. Qxa4 {[%clk 0:00:11.6]} 27... Bxa4 {[%clk
0:00:25.9]} 28. g3 {[%clk 0:00:10.7]} 28... Ne6 {[%clk 0:00:22.7]} 29. Nxe6
{[%clk 0:00:08.5]} 29... fxe6 {[%clk 0:00:22.6]} 30. Rxd6 {[%clk 0:00:09]} 30...
Bxc2 {[%clk 0:00:20.4]} 31. e5 {[%clk 0:00:08.3]} 31... Be7 {[%clk 0:00:20.8]}
32. Rb6 {[%clk 0:00:04.9]} 32... Bd3 {[%clk 0:00:20.2]} 0-1

[Event "Late-Titled-Tuesday-Blitz-March-19-2024"]
[Site "Chess.com"]
[Date "2024.03.19"]
[Round "5"]
[White "gympod"]
[Black "arenal72"]
[Result "0-1"]
[WhiteElo "2379"]
[BlackElo "2606"]
[TimeControl "180+1"]
[EndTime "14:55:02 PDT"]
[Termination "arenal72 won by resignation"]

1. c4 {[%clk 0:02:34.9]} 1... d6 {[%clk 0:02:55.8]} 2. g3 {[%clk 0:02:35.1]}
2... e5 {[%clk 0:02:53.9]} 3. Bg2 {[%clk 0:02:35.6]} 3... f5 {[%clk 0:02:54.3]}
4. Nc3 {[%clk 0:02:35.8]} 4... Nf6 {[%clk 0:02:54.8]} 5. d3 {[%clk 0:02:36.2]}
5... Be7 {[%clk 0:02:55.2]} 6. e3 {[%clk 0:02:36.8]} 6... O-O {[%clk 0:02:55.1]}
7. Nge2 {[%clk 0:02:37.6]} 7... c6 {[%clk 0:02:55.5]} 8. O-O {[%clk 0:02:38.3]}
8... Be6 {[%clk 0:02:55.4]} 9. b3 {[%clk 0:02:38.3]} 9... Nbd7 {[%clk
0:02:55.3]} 10. Bb2 {[%clk 0:02:38.4]} 10... d5 {[%clk 0:02:55.6]} 11. f4 {[%clk
0:02:34.9]} 11... Qb6 {[%clk 0:02:37.5]} 12. Qd2 {[%clk 0:02:26.3]} 12... Bc5
{[%clk 0:02:29.1]} 13. d4 {[%clk 0:02:21.9]} 13... exd4 {[%clk 0:02:28.3]} 14.
exd4 {[%clk 0:02:22.8]} 14... Be7 {[%clk 0:02:26.8]} 15. Qe3 {[%clk 0:02:03.2]}
15... Ne4 {[%clk 0:02:19]} 16. c5 {[%clk 0:02:02]} 16... Qc7 {[%clk 0:02:12.3]}
17. Nc1 {[%clk 0:01:57.6]} 17... b6 {[%clk 0:02:03.2]} 18. cxb6 {[%clk
0:01:40.7]} 18... axb6 {[%clk 0:02:02.1]} 19. Nd3 {[%clk 0:01:41.4]} 19... Ndf6
{[%clk 0:01:55.7]} 20. Ne5 {[%clk 0:01:16.7]} 20... c5 {[%clk 0:01:54.8]} 21.
Ne2 {[%clk 0:00:58]} 21... c4 {[%clk 0:01:46]} 22. Rfc1 {[%clk 0:00:48.9]} 22...
b5 {[%clk 0:01:43.3]} 23. a3 {[%clk 0:00:23.3]} 23... Qb7 {[%clk 0:01:25.6]} 24.
b4 {[%clk 0:00:22.8]} 24... Bf7 {[%clk 0:01:11.9]} 25. Nc3 {[%clk 0:00:22.3]}
25... Bh5 {[%clk 0:01:10.6]} 26. Nxe4 {[%clk 0:00:21.3]} 26... fxe4 {[%clk
0:01:08.5]} 27. Bc3 {[%clk 0:00:19.2]} 27... Ng4 {[%clk 0:01:04.4]} 28. Nxg4
{[%clk 0:00:15.7]} 28... Bxg4 {[%clk 0:01:04.7]} 29. h3 {[%clk 0:00:16.2]} 29...
Be6 {[%clk 0:01:02.5]} 30. g4 {[%clk 0:00:16.4]} 30... h6 {[%clk 0:01:00.4]} 31.
Rf1 {[%clk 0:00:16.7]} 31... Qc7 {[%clk 0:00:57.1]} 32. Ra2 {[%clk 0:00:17.2]}
32... g5 {[%clk 0:00:47.7]} 33. f5 {[%clk 0:00:16]} 33... Bd7 {[%clk 0:00:44.3]}
34. h4 {[%clk 0:00:16.3]} 34... Kg7 {[%clk 0:00:43.1]} 35. Qh3 {[%clk
0:00:16.5]} 35... Ra6 {[%clk 0:00:35.4]} 36. Be1 {[%clk 0:00:16.6]} 36... Rfa8
{[%clk 0:00:27.4]} 37. hxg5 {[%clk 0:00:16.7]} 37... hxg5 {[%clk 0:00:26.6]} 38.
Bg3 {[%clk 0:00:14.7]} 38... Bd6 {[%clk 0:00:25.9]} 39. Qh5 {[%clk 0:00:14.7]}
39... Bxg3 {[%clk 0:00:24.1]} 40. Qg6+ {[%clk 0:00:15.2]} 40... Rxg6 {[%clk
0:00:23.1]} 0-1

[Event "Late-Titled-Tuesday-Blitz-March-19-2024"]
[Site "Chess.com"]
[Date "2024.03.19"]
[Round "5"]
[White "ukchessbomber"]
[Black "Eduard_Limonov"]
[Result "1-0"]
[WhiteElo "2653"]
[BlackElo "2840"]
[TimeControl "180+1"]
[EndTime "14:55:03 PDT"]
[Termination "ukchessbomber won by resignation"]

1. b4 {[%clk 0:02:56.7]} 1... e5 {[%clk 0:02:59.4]} 2. Bb2 {[%clk 0:02:55.9]}
2... Bxb4 {[%clk 0:02:58.8]} 3. Bxe5 {[%clk 0:02:56.3]} 3... Nf6 {[%clk
0:02:58.7]} 4. e3 {[%clk 0:02:57]} 4... O-O {[%clk 0:02:58.4]} 5. c3 {[%clk
0:02:57.3]} 5... Be7 {[%clk 0:02:55.6]} 6. Bxf6 {[%clk 0:02:57.7]} 6... Bxf6
{[%clk 0:02:55.8]} 7. d4 {[%clk 0:02:58.6]} 7... b6 {[%clk 0:02:51.4]} 8. Nf3
{[%clk 0:02:58]} 8... Bb7 {[%clk 0:02:51.4]} 9. g3 {[%clk 0:02:58.6]} 9... Nc6
{[%clk 0:02:44.4]} 10. Bg2 {[%clk 0:02:58.4]} 10... Ba6 {[%clk 0:02:44.9]} 11.
Bf1 {[%clk 0:02:57.9]} 11... Qc8 {[%clk 0:02:43.1]} 12. Bxa6 {[%clk 0:02:52.7]}
12... Qxa6 {[%clk 0:02:44]} 13. Qe2 {[%clk 0:02:53]} 13... Qa4 {[%clk
0:02:26.1]} 14. O-O {[%clk 0:02:52.4]} 14... Rfe8 {[%clk 0:02:24.6]} 15. Nbd2
{[%clk 0:02:50.5]} 15... d5 {[%clk 0:02:21.6]} 16. Qd3 {[%clk 0:02:44.9]} 16...
Na5 {[%clk 0:02:14.4]} 17. h4 {[%clk 0:02:44.9]} 17... h6 {[%clk 0:02:11.9]} 18.
Kg2 {[%clk 0:02:43.6]} 18... Rad8 {[%clk 0:02:09.6]} 19. Rfb1 {[%clk 0:02:17.4]}
19... c5 {[%clk 0:02:01.6]} 20. Qb5 {[%clk 0:02:09.5]} 20... Qa3 {[%clk
0:02:00.2]} 21. Qb2 {[%clk 0:02:01.1]} 21... Qa4 {[%clk 0:01:54.3]} 22. Qb5
{[%clk 0:02:00.8]} 22... Qc2 {[%clk 0:01:54.7]} 23. Rc1 {[%clk 0:02:00.6]} 23...
Qf5 {[%clk 0:01:35.1]} 24. dxc5 {[%clk 0:01:57.7]} 24... Rc8 {[%clk 0:01:22.1]}
25. cxb6 {[%clk 0:01:53.9]} 25... axb6 {[%clk 0:01:19.7]} 26. Qxb6 {[%clk
0:01:54.7]} 26... Nc4 {[%clk 0:01:10.7]} 27. Nxc4 {[%clk 0:01:42.2]} 27... Rxc4
{[%clk 0:01:10.3]} 28. a4 {[%clk 0:01:42.9]} 28... g5 {[%clk 0:01:02.1]} 29.
hxg5 {[%clk 0:01:31.9]} 29... hxg5 {[%clk 0:01:03]} 30. a5 {[%clk 0:01:30.9]}
30... g4 {[%clk 0:00:44.1]} 31. Nd2 {[%clk 0:01:08.2]} 31... Kg7 {[%clk
0:00:44.1]} 32. Qb1 {[%clk 0:00:57.5]} 32... Rce4 {[%clk 0:00:33.6]} 33. Rh1
{[%clk 0:00:38.4]} 33... Bxc3 {[%clk 0:00:26.1]} 34. Nxe4 {[%clk 0:00:38.3]}
34... Rxe4 {[%clk 0:00:19.4]} 35. a6 {[%clk 0:00:29.6]} 35... Qf3+ {[%clk
0:00:17.1]} 36. Kg1 {[%clk 0:00:30.3]} 36... Rxe3 {[%clk 0:00:17.1]} 37. Qh7+
{[%clk 0:00:19.4]} 37... Kf8 {[%clk 0:00:13.3]} 38. Qh6+ {[%clk 0:00:19.8]} 1-0